fUSD/lending_fUSD_20260121
["ID","MTS","AMOUNT","RATE_DAILY","PERIOD"]
[402901466,1768966239086,-150.0,0.00017973,2]
[402901467,1768966239095,-150.0,0.00017973,2]
[402901468,1768966239106,-500.0,0.00017989,2]
[402901469,1768966239115,-500.0,0.00017989,2]
[402901470,1768966239125,-500.0,0.00017989,2]
[402901471,1768966239135,-500.0,0.00017989,2]
[402901472,1768966239145,-507.83337354,0.00017989,2]
[402901473,1768966239156,-503.36060886,0.00017989,2]
[402901474,1768966239165,-151.0,0.00017989,2]
[402901475,1768966239175,-151.0,0.00017989,2]
[402901476,1768966239185,-151.0,0.00017989,2]
[402901477,1768966239195,-151.0,0.00017989,2]
[402901478,1768966239205,-694.10450855,0.0001799,2]
[402901479,1768966239215,-694.10450855,0.0001799,2]
[402901480,1768966239224,-694.10450855,0.0001799,2]
[402901481,1768966239233,-409.94526171,0.00017999,2]
[402901482,1768966239243,-300.0,0.00017999,2]
[402901483,1768966239252,-670.56413926,0.00017999,2]
[402901484,1768966239261,-150.0,0.00017999,2]
[402901485,1768966239273,-2292076.30065212,0.00018,2]
[402901486,1768966239655,-1238.95791096,0.00018,2]
[402901487,1768966239666,-3642.43950382,0.00018,2]
[402901488,1768966239677,-551.09530478,0.00018,2]
[402901489,1768966239733,-106276.1298831,0.00018,2]
[402901490,1768966239744,-896.94,0.00018,2]
[402901491,1768966239755,-2266.50399619,0.00018,2]
[402901492,1768966239765,-510.0107198,0.00018,2]
[402901493,1768966239797,-13285.79926393,0.00018,2]
[402901494,1768966239808,-1295.24488642,0.00018,2]
[402901495,1768966239819,-741.03851009,0.00018,2]
[402901496,1768966239830,-2511.61493329,0.00018,2]
[402901497,1768966239841,-10319.3334292,0.00018,2]
[402901498,1768966239852,-16192.34740202,0.00018,2]
[402901499,1768966239930,-1931.18623579,0.00018,2]
[402901501,1768966239942,-8955.09288504,0.00018,2]
[402901502,1768966239954,-20908.2524505,0.00018,2]
[402901506,1768966241513,-733.13272494,0.00018,2]
[402901507,1768966241524,-463.3169627,0.00018,2]
[402901508,1768966241624,-768.71294345,0.00018,2]
[402901553,1768966242903,-1594.75681133,0.000179,2]
[402901554,1768966242913,-2230.35497004,0.00018,2]
[402901555,1768966242969,-298.0,0.00018,2]
[402901556,1768966243045,-785.0,0.00018,2]
[402901557,1768966243056,-271.46602208,0.00018,2]
[402901558,1768966243071,-416.62661885,0.00018,2]
[402901559,1768966243082,-4248.9280555,0.00018,2]
[402901560,1768966243094,-316.16713008,0.00018,2]
[402901561,1768966243110,-1654.15439225,0.00018,2]
[402901568,1768966245581,-601.50590068,0.000178,2]
[402901569,1768966245591,-183516.81506463,0.00018,2]
[402901570,1768966245602,-691223.67017642,0.00018,2]
[402901571,1768966245634,-12041.30100882,0.00018,2]
[402901572,1768966518195,408.09,0.00013916,2]
[402901573,1768966539049,-1013.294647,0.00016425,2]
[402901574,1768966619712,222.0,0.000226,120]
[402901575,1768966635854,222.0,0.000225,120]
[402901576,1768966722325,222.0,0.000226,120]
[402901577,1768966730813,255.0,0.000226,120]
[402901579,1768966775535,465.35108245,0.00016404,2]
[402901607,1768967161242,166.66,0.00015477,2]
[402901608,1768967161521,166.66,0.00015803,2]
[402901609,1768967161742,166.66,0.00016129,2]
[402901622,1768967246863,952.235333,0.00016339,2]
[402901623,1768967286373,682.81,0.00016155,2]
[402901647,1768967432070,-1200.0,0.00016421,2]
[402901648,1768967432079,-322.23,0.00016422,2]
[402901649,1768967432088,-441.63337288,0.00016422,2]
[402901650,1768967432098,-443.79229022,0.00016422,2]
[402901651,1768967432107,-300.49440875,0.00016422,2]
[402901652,1768967432117,-571.60228839,0.00016422,2]
[402901653,1768967432126,-500.0,0.00016422,2]
[402901654,1768967432135,-500.0,0.00016422,2]
[402901655,1768967432144,-500.0,0.00016422,2]
[402901656,1768967432153,-500.0,0.00016422,2]
[402901657,1768967432162,-201.83160787,0.00016422,2]
[402901658,1768967432171,-392.50510109,0.00016422,2]
[402901659,1768967432180,-500.0,0.00016422,2]
[402901660,1768967432190,-500.0,0.00016422,2]
[402901661,1768967432199,-500.0,0.00016422,2]
[402901662,1768967432208,-500.0,0.00016422,2]
[402901663,1768967432217,-500.0,0.00016422,2]
[402901664,1768967432226,-500.0,0.00016422,2]
[402901665,1768967432235,-500.0,0.00016422,2]
[402901666,1768967432244,-500.0,0.00016422,2]
[402901667,1768967432254,-500.0,0.00016422,2]
[402901668,1768967432263,-500.0,0.00016422,2]
[402901669,1768967432272,-500.0,0.00016422,2]
[402901670,1768967432281,-500.0,0.00016422,2]
[402901671,1768967432291,-500.0,0.00016422,2]
[402901672,1768967432300,-500.0,0.00016422,2]
[402901673,1768967432309,-500.0,0.00016422,2]
[402901674,1768967432319,-500.0,0.00016422,2]
[402901675,1768967432328,-500.0,0.00016422,2]
[402901676,1768967432337,-500.0,0.00016422,2]
[402901677,1768967432347,-500.0,0.00016422,2]
[402901678,1768967432356,-500.0,0.00016422,2]
[402901679,1768967432365,-500.0,0.00016422,2]
[402901680,1768967432374,-500.0,0.00016422,2]
[402901681,1768967432384,-500.0,0.00016422,2]
[402901682,1768967432398,-500.0,0.00016422,2]
[402901683,1768967432407,-500.0,0.00016422,2]
[402901684,1768967432417,-500.0,0.00016422,2]
[402901685,1768967432426,-500.0,0.00016422,2]
[402901686,1768967432436,-500.0,0.00016422,2]
[402901687,1768967432445,-500.0,0.00016422,2]
[402901688,1768967432455,-500.0,0.00016422,2]
[402901689,1768967432465,-500.0,0.00016422,2]
[402901690,1768967432474,-500.0,0.00016422,2]
[402901691,1768967432485,-445.87059101,0.00016422,2]
[402901692,1768967432495,-500.0,0.00016422,2]
[402901693,1768967432505,-200.00000001,0.00016422,2]
[402901694,1768967432514,-500.0,0.00016422,2]
[402901695,1768967432523,-500.0,0.00016422,2]
[402901696,1768967432532,-500.0,0.00016422,2]
[402901697,1768967432542,-500.0,0.00016422,2]
[402901698,1768967432551,-15129.03712047,0.00016423,2]
[402901699,1768967432560,-22803.49513581,0.00016424,2]
[402901700,1768967432570,-9593.41847815,0.00016424,2]
[402901701,1768967432579,-500.0,0.00016438,2]
[402901702,1768967432588,-500.0,0.00016438,2]
[402901703,1768967432598,-500.0,0.00016438,2]
[402901704,1768967432607,-500.0,0.00016438,2]
[402901705,1768967432616,-500.0,0.00016438,2]
[402901706,1768967432626,-500.0,0.00016438,2]
[402901707,1768967432638,-500.0,0.00016438,2]
[402901708,1768967432648,-500.0,0.00016438,2]
[402901709,1768967432657,-500.0,0.00016438,2]
[402901710,1768967432666,-500.0,0.00016438,2]
[402901711,1768967432676,-500.0,0.00016438,2]
[402901712,1768967432686,-500.0,0.00016438,2]
[402901713,1768967432695,-500.0,0.00016438,2]
[402901714,1768967432708,-500.0,0.00016438,2]
[402901715,1768967432718,-500.0,0.00016438,2]
[402901716,1768967432728,-500.0,0.00016438,2]
[402901717,1768967432738,-500.0,0.00016438,2]
[402901718,1768967432748,-500.0,0.00016438,2]
[402901719,1768967432758,-500.0,0.00016438,2]
[402901720,1768967432769,-500.0,0.00016438,2]
[402901721,1768967432780,-500.0,0.00016438,2]
[402901722,1768967432791,-500.0,0.00016438,2]
[402901723,1768967432802,-411.9399061,0.00016438,2]
[402901724,1768967432811,-500.0,0.00016438,2]
[402901725,1768967432821,-500.0,0.00016438,2]
[402901726,1768967432830,-500.0,0.00016438,2]
[402901727,1768967432840,-500.0,0.00016438,2]
[402901728,1768967432851,-500.0,0.00016438,2]
[402901729,1768967432861,-500.0,0.00016438,2]
[402901730,1768967432870,-650.0,0.00016438,2]
[402901731,1768967432881,-500.0,0.00016438,2]
[402901732,1768967432890,-166.66,0.00016454,2]
[402901733,1768967432899,-503.36060886,0.00016512,2]
[402901734,1768967432908,-500.0,0.00016512,2]
[402901735,1768967432918,-500.0,0.00016512,2]
[402901736,1768967432928,-500.0,0.00016512,2]
[402901737,1768967432938,-500.0,0.00016512,2]
[402901738,1768967432947,-507.83337354,0.00016512,2]
[402901739,1768967432956,-151.0,0.00016512,2]
[402901740,1768967432966,-151.0,0.00016512,2]
[402901741,1768967432977,-151.0,0.00016512,2]
[402901742,1768967432986,-151.0,0.00016512,2]
[402901743,1768967432996,-151.0,0.00016512,2]
[402901744,1768967433005,-151.0,0.00016512,2]
[402901745,1768967433013,-151.0,0.00016512,2]
[402901746,1768967433023,-151.0,0.00016512,2]
[402901747,1768967433032,-151.0,0.00016512,2]
[402901748,1768967433042,-249.49917232,0.00016521,2]
[402901749,1768967433051,-500.0,0.00016521,2]
[402901750,1768967433060,-227.82111706,0.00016521,2]
[402901751,1768967433069,-152.18940545,0.00016521,2]
[402901752,1768967433078,-380.6333798,0.00016521,2]
[402901753,1768967433087,-1209.65561051,0.00016521,5]
[402901754,1768967433096,-500.76861112,0.00016521,2]
[402901755,1768967433105,-500.0,0.00016521,2]
[402901756,1768967433114,-500.0,0.00016521,2]
[402901757,1768967433123,-500.0,0.00016521,2]
[402901758,1768967433132,-500.0,0.00016521,2]
[402901759,1768967433141,-500.0,0.00016521,2]
[402901760,1768967433150,-500.0,0.00016521,2]
[402901761,1768967433159,-500.0,0.00016521,2]
[402901762,1768967433168,-500.0,0.00016521,2]
[402901763,1768967433178,-500.0,0.00016521,2]
[402901764,1768967433187,-500.0,0.00016521,2]
[402901765,1768967433196,-500.0,0.00016521,2]
[402901766,1768967433206,-500.0,0.00016521,2]
[402901767,1768967433215,-598.24931453,0.00016521,2]
[402901768,1768967433224,-155.0,0.00016524,2]
[402901769,1768967433233,-23500.03,0.00016525,2]
[402901770,1768967433242,-1000.0,0.00016525,2]
[402901771,1768967433252,-166.0,0.00016624,2]
[402901772,1768967433261,-500.0,0.00016624,2]
[402901773,1768967433271,-500.0,0.00016624,2]
[402901774,1768967433281,-505.56624435,0.00016624,2]
[402901775,1768967433290,-500.0,0.00016624,2]
[402901776,1768967433300,-500.0,0.00016624,2]
[402901777,1768967433310,-500.0,0.00016624,2]
[402901778,1768967433320,-500.0,0.00016624,2]
[402901779,1768967433330,-322.23,0.00016696,2]
[402901780,1768967433339,-500.0,0.00016712,2]
[402901781,1768967433349,-166.66,0.0001678,2]
[402901782,1768967433358,-151.0,0.00016804,2]
[402901783,1768967433368,-151.0,0.00016808,2]
[402901784,1768967433377,-150.00600647,0.00016825,2]
[402901785,1768967433387,-438.71792565,0.00016839,2]
[402901786,1768967433399,-1157.78354699,0.00016839,2]
[402901787,1768967433409,-2042.46741335,0.00016839,2]
[402901788,1768967433418,-3055.40909843,0.00016839,2]
[402901789,1768967433428,-322.23,0.0001697,2]
[402901790,1768967433437,-159.8639543,0.00016986,2]
[402901791,1768967433447,-506.83676037,0.00016999,2]
[402901792,1768967433456,-500.0,0.00016999,2]
[402901793,1768967433466,-500.0,0.00016999,2]
[402901794,1768967433475,-517.57958256,0.00016999,2]
[402901795,1768967433484,-250.0,0.00017,2]
[402901796,1768967433495,-967.63,0.00017041,2]
[402901797,1768967433505,-166.66,0.00017106,2]
[402901798,1768967433514,-425.03339006,0.00017185,2]
[402901799,1768967433524,-322.23,0.00017244,2]
[402901800,1768967433533,-200.0,0.00017276,2]
[402901801,1768967433542,-9593.41847814,0.00017359,2]
[402901802,1768967433551,-242.00387817,0.00017373,2]
[402901803,1768967433560,-500.0,0.00017373,2]
[402901804,1768967433569,-300.0,0.00017373,2]
[402901805,1768967433578,-500.79549494,0.00017373,2]
[402901806,1768967433587,-500.12560695,0.00017373,2]
[402901807,1768967433597,-586.66357325,0.00017373,2]
[402901808,1768967433606,-322.92976016,0.00017373,2]
[402901809,1768967433615,-500.0,0.00017373,2]
[402901810,1768967433624,-500.0,0.00017373,2]
[402901811,1768967433634,-600.0,0.000175,6]
[402901812,1768967433643,-322.26,0.00017518,2]
[402901813,1768967433652,-1200.0,0.000176,6]
[402901814,1768967433663,-14747.03842565,0.00017624,2]
[402901815,1768967433676,-4321.55464338,0.00017624,2]
[402901816,1768967433689,-3734.90206678,0.00017624,2]
[402901817,1768967433698,-1800.0,0.000177,6]
[402901818,1768967433707,-1245.69865531,0.000178,6]
[402901819,1768967433718,-630.31,0.000178,6]
[402901820,1768967433730,-378.63644074,0.000178,6]
[402901821,1768967433741,-145.35490395,0.000178,6]
[402901822,1768967433751,-500.0,0.00017896,2]
[402901823,1768967433760,-589.79552463,0.00017899,2]
[402901824,1768967433769,-10000.0,0.000179,2]
[402901825,1768967433779,-11264.56011272,0.000179,2]
[402901826,1768967433789,-280.6551231,0.000179,2]
[402901827,1768967433799,-3100.0,0.000179,6]
[402901828,1768967433809,-174.38650115,0.000179,2]
[402901829,1768967433819,-723.21444213,0.000179,2]
[402901830,1768967433829,-2683.23467974,0.000179,2]
[402901831,1768967433838,-158.60706814,0.000179,2]
[402901832,1768967433847,-764.5617033,0.000179,2]
[402901833,1768967433918,-302.04407022,0.000179,2]
[402901834,1768967433929,-2112.55122101,0.000179,2]
[402901835,1768967433939,-501.73019451,0.00017921,2]
[402901836,1768967433948,-1000.0,0.00017921,2]
[402901837,1768967433957,-555.33179761,0.00017921,2]
[402901838,1768967433967,-409.0,0.00017946,2]
[402901839,1768967433976,-151.0,0.0001797,2]
[402901840,1768967433986,-500.0,0.00017973,2]
[402901841,1768967433995,-150.0,0.00017973,2]
[402901842,1768967434005,-694.10450855,0.0001799,2]
[402901843,1768967434015,-694.10450855,0.0001799,2]
[402901844,1768967434024,-151.0,0.00017997,2]
[402901845,1768967434034,-500.0,0.00017998,2]
[402901846,1768967434043,-150.0,0.00017999,2]
[402901847,1768967434053,-150.0,0.00017999,2]
[402901848,1768967434063,-150.0,0.00017999,2]
[402901849,1768967434072,-150.0,0.00017999,2]
[402901850,1768967434081,-169.01245236,0.00017999,2]
[402901851,1768967434090,-300.0,0.00017999,2]
[402901852,1768967434099,-40859.58859362,0.00017999,2]
[402901860,1768967438739,-2220.24982792,0.00016422,2]
[402901861,1768967438749,-143462.58622368,0.00017999,2]
[402901862,1768967438758,-159.52,0.00017999,2]
[402901863,1768967438767,-586.19616648,0.00017999,2]
[402901864,1768967438776,-513.96107925,0.00017999,2]
[402901865,1768967438785,-500.0,0.00017999,2]
[402901866,1768967438794,-500.0,0.00017999,2]
[402901867,1768967438803,-500.0,0.00017999,2]
[402901868,1768967438813,-500.0,0.00017999,2]
[402901869,1768967438822,-500.0,0.00017999,2]
[402901870,1768967438831,-500.0,0.00017999,2]
[402901871,1768967438840,-500.0,0.00017999,2]
[402901872,1768967438849,-500.0,0.00017999,2]
[402901873,1768967438859,-500.0,0.00017999,2]
[402901874,1768967438868,-207.27738091,0.00017999,2]
[402901875,1768967438878,-300.0,0.00017999,2]
[402901876,1768967438887,-670.56413926,0.00017999,2]
[402901877,1768967438896,-387.3461864,0.00017999,2]
[402901878,1768967438905,-300.0,0.00017999,2]
[402901879,1768967438914,-4563.8416647,0.00017999,2]
[402901880,1768967438924,-675.00377713,0.00017999,2]
[402901881,1768967438934,-150.0,0.00017999,2]
[402901882,1768967438943,-150.0,0.00017999,2]
[402901883,1768967438952,-300.0,0.00017999,2]
[402901884,1768967438962,-2654091.03633515,0.00018,2]
[402901887,1768967440059,-1099141.28805108,0.00018,2]
[402901888,1768967440068,-182406.90131339,0.00018,2]
[402901889,1768967440078,-348.67138939,0.00018,2]
[402901890,1768967440087,-151.0,0.00018,2]
[402901891,1768967440096,-151.0,0.00018,2]
[402901892,1768967440106,-150.00600647,0.00018005,2]
[402901893,1768967440115,-500.0,0.00018028,2]
[402901894,1768967440124,-500.0,0.00018083,2]
[402901895,1768967440133,-576.87041073,0.00018137,2]
[402901896,1768967440142,-281.2,0.0001818,2]
[402901897,1768967440151,-151.0,0.00018292,2]
[402901898,1768967440161,-9593.41847814,0.00018295,2]
[402901900,1768967440170,-500.0,0.00018468,2]
[402901902,1768967440179,-1000.0,0.00018758,2]
[402901903,1768967440188,-22803.49513581,0.00018825,2]
[402901904,1768967440199,-4134.0717,0.00018839,2]
[402901905,1768967440208,-310.89,0.00019178,30]
[402901906,1768967440218,-150.00600647,0.00019185,7]
[402901908,1768967440227,-9593.41847814,0.0001923,2]
[402901909,1768967440236,-508.0,0.000196,2]
[402901910,1768967440247,-155.0,0.00019799,2]
[402901911,1768967440257,-22803.49513581,0.00020025,2]
[402901912,1768967440267,-9593.41847814,0.00020166,2]
[402901913,1768967440277,-41127.8363858,0.00020355,2]
[402901914,1768967440287,-150.00600647,0.00020365,12]
[402901915,1768967440297,-1018.3307215,0.00020412,2]
[402901916,1768967440306,-281.2,0.00020434,2]
[402901917,1768967440317,-1000.0,0.00020843,2]
[402901918,1768967440326,-9176.8607193,0.0002088,2]
[402901920,1768967440335,-227.2202969,0.00020951,2]
[402901921,1768967440346,-9593.41847814,0.00021101,2]
[402901922,1768967440355,-22803.49513581,0.00021225,2]
[402901923,1768967440364,-589.79552457,0.00021438,2]
[402901924,1768967440373,-150.00600647,0.00021545,16]
[402901925,1768967440382,-151.0,0.00021754,2]
[402901926,1768967440396,-409.94526171,0.00021756,2]
[402901927,1768967440406,-307.90091693,0.00021756,2]
[402901928,1768967440416,-48739.69,0.00021757,2]
[402901929,1768967440425,-999.99,0.00021757,2]
[402901930,1768967440434,-9999.99,0.00021757,2]
[402901931,1768967440444,-419.18,0.00021757,2]
[402901932,1768967440453,-12802.09,0.00021757,2]
[402901933,1768967440462,-6293.8,0.00021757,2]
[402901934,1768967440471,-150.99,0.00021757,2]
[402901935,1768967440480,-7007.81,0.00021757,2]
[402901936,1768967440490,-977.0,0.00022,2]
[402901937,1768967440499,-9593.41847814,0.00022037,2]
[402901938,1768967440509,-280.6551231,0.00022063,2]
[402901939,1768967440518,-22803.49513581,0.00022426,2]
[402901940,1768967440528,-682.81,0.00022617,2]
[402901941,1768967440538,-281.2,0.00022688,2]
[402901942,1768967440547,-150.00600647,0.00022725,21]
[402901943,1768967440557,-2683.23467969,0.00022855,2]
[402901944,1768967440566,-1000.0,0.00022927,2]
[402901945,1768967440575,-9593.41847814,0.00022972,2]
[402901946,1768967440585,-500.0,0.00023,20]
[402901947,1768967440594,-150.0,0.00023028,2]
[402901948,1768967440603,-500.0,0.000232,30]
[402901949,1768967440612,-173.94,0.00023602,2]
[402901950,1768967440621,-22803.49513581,0.00023626,2]
[402901951,1768967440630,-159.131376,0.00023854,3]
[402901952,1768967440639,-150.00600647,0.00023905,26]
[402901953,1768967440648,-9593.41847814,0.00023908,2]
[402901954,1768967440658,-689.41,0.00024,60]
[402901955,1768967440667,-310.89,0.00024225,30]
[402901956,1768967440676,-150.02,0.00024275,2]
[402901957,1768967440687,-1000.0,0.00024658,2]
[402901958,1768967440698,-334.5472959,0.00024811,2]
[402901959,1768967440707,-500.0,0.00024811,2]
[402901960,1768967440716,-500.0,0.00024811,2]
[402901961,1768967440727,-500.0,0.00024811,2]
[402901962,1768967440736,-500.0,0.00024811,2]
[402901963,1768967440745,-500.0,0.00024811,2]
[402901964,1768967440754,-500.0,0.00024811,2]
[402901965,1768967440763,-500.0,0.00024811,2]
[402901966,1768967440772,-500.0,0.00024811,2]
[402901967,1768967440781,-500.0,0.00024811,2]
[402901968,1768967440790,-500.0,0.00024811,2]
[402901969,1768967440799,-500.0,0.00024811,2]
[402901970,1768967440808,-500.0,0.00024811,2]
[402901971,1768967440817,-2567.0,0.00024811,2]
[402901972,1768967440826,-500.0,0.00024811,2]
[402901973,1768967440835,-500.0,0.00024811,2]
[402901974,1768967440844,-500.0,0.00024811,2]
[402901975,1768967440853,-500.0,0.00024811,2]
[402901976,1768967440862,-500.0,0.00024811,2]
[402901977,1768967440871,-500.0,0.00024811,2]
[402901978,1768967440879,-500.0,0.00024811,2]
[402901979,1768967440888,-500.0,0.00024811,2]
[402901980,1768967440897,-500.0,0.00024811,2]
[402901981,1768967440906,-500.0,0.00024811,2]
[402901982,1768967440916,-500.0,0.00024811,2]
[402901983,1768967440925,-500.0,0.00024811,2]
[402901984,1768967440934,-500.0,0.00024811,2]
[402901985,1768967440944,-500.0,0.00024811,2]
[402901986,1768967440953,-500.0,0.00024811,2]
[402901987,1768967440963,-500.0,0.00024811,2]
[402901988,1768967440974,-500.0,0.00024811,2]
[402901989,1768967440983,-500.0,0.00024811,2]
[402901990,1768967440993,-500.0,0.00024811,2]
[402901991,1768967441003,-500.0,0.00024811,2]
[402901992,1768967441012,-500.0,0.00024811,2]
[402901993,1768967441025,-500.0,0.00024811,2]
[402901994,1768967441034,-500.0,0.00024811,2]
[402901995,1768967441044,-500.0,0.00024811,2]
[402901996,1768967441055,-468.26194413,0.00024811,2]
[402901997,1768967441065,-500.0,0.00024811,2]
[402901998,1768967441074,-500.0,0.00024811,2]
[402901999,1768967441085,-22803.49513581,0.00024826,2]
[402902000,1768967441094,-9593.41847814,0.00024843,2]
[402902001,1768967441104,-19462.8664808,0.000249,3]
[402902002,1768967441112,-281.2,0.00024943,2]
[402902003,1768967441121,-589.79552457,0.00024978,2]
[402902004,1768967441131,-155.53654206,0.0002499,2]
[402902005,1768967441140,-500.0,0.00025,15]
[402902006,1768967441149,-1000.0,0.00025011,2]
[402902007,1768967441158,-150.00600647,0.00025084,31]
[402902008,1768967441170,-508.0,0.00025091,7]
[402902009,1768967441179,-346.92554585,0.00025359,2]
[402902010,1768967441188,-408.09,0.00025696,2]
[402902011,1768967441197,-159.75281008,0.00025907,2]
[402902012,1768967441206,-150.0,0.00025913,2]
[402902013,1768967441215,-150.0,0.00025913,2]
[402902014,1768967441224,-150.0,0.00025913,2]
[402902015,1768967441233,-500.0,0.00025913,2]
[402902016,1768967441242,-150.0,0.00025913,2]
[402902017,1768967441253,-150.0,0.00025913,2]
[402902018,1768967441262,-500.0,0.00025913,2]
[402902019,1768967441271,-150.0,0.00025913,2]
[402902020,1768967441280,-150.0,0.00025913,2]
[402902021,1768967441289,-150.0,0.00025913,2]
[402902022,1768967441299,-150.0,0.00025913,2]
[402902023,1768967441308,-150.0,0.00025913,2]
[402902024,1768967441317,-150.0,0.00025913,2]
[402902025,1768967441325,-150.0,0.00025913,2]
[402902026,1768967441334,-150.0,0.00025913,2]
[402902027,1768967441343,-150.0,0.00025913,2]
[402902028,1768967441352,-150.0,0.00025913,2]
[402902029,1768967441361,-500.0,0.00025913,2]
[402902030,1768967441370,-150.0,0.00025913,2]
[402902031,1768967441379,-150.0,0.00025913,2]
[402902032,1768967441389,-150.0,0.00025913,2]
[402902033,1768967441400,-150.0,0.00025913,2]
[402902034,1768967441409,-150.0,0.00025913,2]
[402902035,1768967441701,-500.0,0.00025913,2]
[402902036,1768967441710,-150.0,0.00025913,2]
[402902037,1768967441720,-500.0,0.00025913,2]
[402902038,1768967441729,-150.0,0.00025968,2]
[402902039,1768967441738,-277.0,0.00025968,2]
[402902040,1768967441748,-630.82232276,0.00025968,2]
[402902041,1768967441757,-150.0,0.00025968,2]
[402902042,1768967441767,-515.86032372,0.00025968,2]
[402902043,1768967441777,-150.0,0.00025968,2]
[402902044,1768967441787,-150.0,0.00025968,2]
[402902045,1768967441796,-150.0,0.00025968,2]
[402902046,1768967441805,-150.0,0.00025968,2]
[402902047,1768967441814,-150.0,0.00025968,2]
[402902048,1768967441824,-150.0,0.00025968,2]
[402902049,1768967441832,-150.0,0.00025968,2]
[402902050,1768967441842,-200.0,0.00025968,2]
[402902051,1768967441852,-200.0,0.00025968,2]
[402902052,1768967441861,-500.0,0.00025968,2]
[402902053,1768967441870,-150.0,0.00025968,2]
[402902054,1768967441879,-150.0,0.00025968,2]
[402902055,1768967441889,-150.0,0.00025968,2]
[402902056,1768967441898,-554.0,0.00025968,2]
[402902057,1768967441908,-150.0,0.00025968,2]
[402902058,1768967441917,-500.0,0.00025968,2]
[402902059,1768967441926,-200.0,0.00026023,2]
[402902060,1768967441935,-200.0,0.00026023,2]
[402902061,1768967441945,-200.0,0.00026023,2]
[402902062,1768967441955,-200.0,0.00026023,2]
[402902063,1768967441964,-200.0,0.00026023,2]
[402902064,1768967441974,-200.0,0.00026023,2]
[402902065,1768967441983,-200.0,0.00026023,2]
[402902066,1768967441993,-200.0,0.00026023,2]
[402902067,1768967442002,-360.2469951,0.00026023,2]
[402902068,1768967442014,-200.0,0.00026023,2]
[402902069,1768967442024,-150.0,0.00026023,2]
[402902070,1768967442034,-200.0,0.00026023,2]
[402902071,1768967442044,-500.0,0.00026023,2]
[402902072,1768967442053,-151.0,0.00026024,7]
[402902073,1768967442063,-22803.49513581,0.00026027,2]
[402902074,1768967442072,-150.0,0.00026077,2]
[402902075,1768967442082,-500.0,0.00026077,2]
[402902076,1768967442091,-150.0,0.00026132,2]
[402902077,1768967442100,-9809.0,0.00026182,2]
[402902078,1768967442109,-250.0,0.00026187,2]
[402902079,1768967442119,-280.6551231,0.00026225,2]
[402902080,1768967442129,-150.00600647,0.00026264,35]
[402902081,1768967442139,-168.0,0.0002665,2]
[402902082,1768967442149,-168.0,0.00026671,2]
[402902083,1768967442160,-168.0,0.00027182,2]
[402902084,1768967442169,-281.2,0.00027197,2]
[402902085,1768967442178,-22803.49513581,0.00027227,2]
[402902086,1768967442187,-168.0,0.00027252,2]
[402902087,1768967442197,-1159.328,0.00027276,2]
[402902088,1768967442207,-566.0,0.00027276,2]
[402902089,1768967442218,-6564.0,0.00027276,2]
[402902090,1768967442227,-2440.0,0.00027276,2]
[402902091,1768967442237,-168.0,0.00027327,2]
[402902092,1768967442246,-150.0,0.00027369,2]
[402902093,1768967442257,-168.0,0.00027392,2]
[402902094,1768967442267,-301.44021015,0.00027397,2]
[402902095,1768967442277,-500.0,0.00027397,20]